[Event "24th Barcelona Open-A 2019"]
[Site "Barcelona"]
[Date "2019.10.04"]
[Round "8.16"]
[White "Rahman, Masruri"]
[Black "Barseghyan, Harutyun"]
[Result "0-1"]
[ECO "A45"]
[WhiteElo "2271"]
[BlackElo "2500"]
[Annotator "ChessBase"]
[PlyCount "74"]
[EventDate "2019.09.27"]
[EventType "swiss"]
[EventCountry "ESP"]
[SourceTitle "playchess.com"]
[Source "ChessBase"]
[SourceQuality "1"]
[TimeControl "5400+30"]

1. d4 Nf6 2. Bf4 d5 3. e3 c5 4. c3 Nc6 5. Nd2 Bf5 6. Qb3 Qd7 7. Ngf3 c4 8. Qd1 e6 9. Ne5 Nxe5 10. Bxe5 Be7 11. Bxf6 Bxf6 12. e4 Bg6 13. h4 h6 14. Qg4 h5 15. Qe2 b5 16. g3 e5 17. Bh3 Qe7 18. dxe5 Bxe5 19. Bf5 Bxf5 20. exf5 b4 21. Rc1 bxc3 22. bxc3 Bf6 23. Nf1 Qxe2+ 24. Kxe2 Kd7 25. Ne3 Kc6 26. Rhd1 Rhd8 27. Rc2 Rab8 28. Rcd2 Bxc3 29. Rxd5 Rb2+ 30. Kf3 Rxd5 31. Nxd5 Bd2 32. Ke4 Kc5 33. a3 c3 34. Nb4 Rxb4+ 35. axb4+ Kc4 36. Ra1 c2 37. Rxa7 Bc3 0-1

[Event "24th Barcelona Open-A 2019"]
[Site "Barcelona"]
[Date "2019.10.04"]
[Round "8.17"]
[White "Alshameary Puente, Ismael"]
[Black "Jimenez Ruano, Adrian"]
[Result "1-0"]
[ECO "E40"]
[WhiteElo "2444"]
[BlackElo "2311"]
[Annotator "NA"]
[PlyCount "97"]
[EventDate "2019.09.27"]
[EventType "swiss"]
[EventCountry "ESP"]
[SourceTitle "playchess.com"]
[Source "ChessBase"]
[SourceQuality "1"]
[TimeControl "5400+30"]

1. d4 {[%emt 0:00:00]} Nf6 {[%emt 0:00:51]} 2. c4 {[%emt 0:00:00]} e6 {[%emt 0:00:15]} 3. Nc3 {[%emt 0:00:03]} Bb4 {[%emt 0:00:09]} 4. e3 {[%emt 0:00:45]} d5 {[%emt 0:00:10]} 5. a3 {[%emt 0:00:06]} Bxc3+ {[%emt 0:00:25]} 6. bxc3 {[%emt 0:00:06]} O-O {[%emt 0:00:32]} 7. cxd5 {[%emt 0:00:14]} exd5 {[%emt 0:00:16]} 8. Bd3 {[%emt 0:01:10]} b6 {[%emt 0:00:35]} 9. Ne2 {[%emt 0:00:05]} Ba6 {[%emt 0:04:16]} 10. O-O {[%emt 0:00:19]} Qc8 {[%emt 0:05:42]} 11. f3 {[%emt 0:33:50]} Re8 {[%emt 0:10:02]} 12. Ng3 {[%emt 0:01:06]} c5 {[%emt 0:04:06]} 13. e4 {[%emt 0:06:57]} cxd4 {[%emt 0:14:56]} 14. cxd4 {[%emt 0:00:29]} Bxd3 {[%emt 0:00:05]} 15. Qxd3 {[%emt 0:00:07]} h6 16. e5 {[%emt 0:02:02]} Nfd7 {[%emt 0:11:29]} 17. Nf5 {[%emt 0:00:40]} Qa6 {[%emt 0:01:13]} 18. Qc2 {[%emt 0:02:48]} b5 {[%emt 0:05:01]} 19. Nd6 {[%emt 0:04:12]} Rf8 {[%emt 0:00:01]} 20. Qf5 {[%emt 0:02:20]} Qa4 {[%emt 0:06:46]} 21. Be3 {[%emt 0:04:48]} a5 {[%emt 0:05:52]} 22. Qg4 {[%emt 0:02:34]} Kh7 {[%emt 0:00:08]} 23. Nf5 {[%emt 0:00:27]} Rg8 {[%emt 0:00:01]} 24. Rac1 {[%emt 0:00:47]} Ra6 {[%emt 0:00:44]} 25. Ne7 {[%emt 0:02:01]} Qxa3 {[%emt 0:04:44]} 26. Qf5+ {[%emt 0:06:13]} Rg6 {[%emt 0:04:33]} 27. Nxd5 {[%emt 0:00:29]} b4 {[%emt 0:02:40]} 28. Ra1 {[%emt 0:10:04]} Qb3 29. Qxf7 {[%emt 0:01:01]} a4 {[%emt 0:01:52]} 30. Rxa4 {[%emt 0:05:39]} Qc2 {[%emt 0:02:24]} 31. Nf4 {[%emt 0:00:10]} Rg5 {[%emt 0:00:01]} 32. Ra2 {[%emt 0:00:32]} Qc6 {[%emt 0:02:24]} 33. Qb3 {[%emt 0:06:40]} Qb7 {[%emt 0:00:30]} 34. g4 {[%emt 0:00:41]} Rc8 {[%emt 0:07:25]} 35. Rc2 {[%emt 0:00:45]} Nc6 {[%emt 0:01:27]} 36. h4 {[%emt 0:01:04]} Rxe5 {[%emt 0:00:16]} 37. dxe5 {[%emt 0:00:18]} Ndxe5 {[%emt 0:00:01]} 38. Rc5 {[%emt 0:00:58]} Re8 {[%emt 0:00:51]} 39. Kf2 {[%emt 0:03:00]} Kh8 {[%emt 0:00:33]} 40. Qd5 {[%emt 0:00:57]} Rd8 {[%emt 0:00:06]} 41. Qe6 {[%emt 0:00:45]} Nd4 {[%emt 0:00:55]} 42. Bxd4 {[%emt 0:02:40]} Qxf3+ {[%emt 0:00:29]} 43. Kg1 {[%emt 0:00:41]} Qg3+ {[%emt 0:00:10]} 44. Ng2 {[%emt 0:00:37]} Nxg4 {[%emt 0:00:01]} 45. Be5 {[%emt 0:00:09]} Qh3 {[%emt 0:00:46]} 46. Rc4 {[%emt 0:00:33]} h5 {[%emt 0:00:32]} 47. Rc8 {[%emt 0:00:44]} Rxc8 {[%emt 0:00:22]} 48. Qxc8+ {[%emt 0:00:03]} Kh7 {[%emt 0:00:01]} 49. Qf5+ {[%emt 0:00:15]} 1-0

[Event "24th Barcelona Open-A 2019"]
[Site "Barcelona"]
[Date "2019.10.04"]
[Round "8.18"]
[White "Veinberg, Nimrod"]
[Black "Garcia Paolicchi, Raul"]
[Result "1/2-1/2"]
[ECO "D20"]
[WhiteElo "2411"]
[BlackElo "2054"]
[Annotator "NA"]
[PlyCount "76"]
[EventDate "2019.09.27"]
[EventType "swiss"]
[EventCountry "ESP"]
[SourceTitle "playchess.com"]
[Source "ChessBase"]
[SourceQuality "1"]
[TimeControl "5400+30"]

1. d4 {[%emt 0:00:00]} d5 {[%emt 0:00:00]} 2. c4 {[%emt 0:00:00]} dxc4 {[%emt 0:00:14]} 3. e4 {[%emt 0:00:00]} e5 {[%emt 0:00:09]} 4. Nf3 {[%emt 0:00:01]} exd4 {[%emt 0:00:10]} 5. Bxc4 {[%emt 0:00:18]} Nc6 {[%emt 0:00:28]} 6. O-O {[%emt 0:01:46]} Be6 {[%emt 0:00:24]} 7. Bxe6 {[%emt 0:00:07]} fxe6 {[%emt 0:00:06]} 8. Qb3 {[%emt 0:00:07]} Qd7 {[%emt 0:00:15]} 9. Qxb7 {[%emt 0:00:29]} Rb8 {[%emt 0:00:17]} 10. Qa6 {[%emt 0:00:07]} Nf6 {[%emt 0:00:24]} 11. Nbd2 {[%emt 0:00:11]} Bb4 {[%emt 0:04:27]} 12. Qd3 {[%emt 0:00:43]} O-O {[%emt 0:01:50]} 13. Nc4 {[%emt 0:02:34]} Bc5 {[%emt 0:07:52]} 14. Bd2 {[%emt 0:04:26]} Qe7 {[%emt 0:04:22]} 15. a3 {[%emt 0:08:13]} a6 {[%emt 0:13:48]} 16. b4 {[%emt 0:01:34]} Ba7 {[%emt 0:00:11]} 17. Rac1 {[%emt 0:11:27]} Nd7 {[%emt 0:13:08]} 18. Nb2 {[%emt 0:26:38]} Nce5 {[%emt 0:05:52]} 19. Nxe5 {[%emt 0:00:11]} Nxe5 {[%emt 0:00:07]} 20. Qxa6 {[%emt 0:03:35]} Bb6 {[%emt 0:00:54]} 21. Qe2 {[%emt 0:01:30]} Ra8 {[%emt 0:09:08]} 22. Nd3 {[%emt 0:02:36]} Nxd3 {[%emt 0:04:35]} 23. Qxd3 {[%emt 0:00:34]} Ra4 {[%emt 0:01:53]} 24. Rc6 {[%emt 0:01:11]} Rfa8 {[%emt 0:01:54]} 25. Bc1 {[%emt 0:00:19]} Qf7 {[%emt 0:02:12]} 26. f4 {[%emt 0:04:43]} Qd7 {[%emt 0:03:56]} 27. Rc2 {[%emt 0:01:13]} R4a7 {[%emt 0:03:37]} 28. Bb2 {[%emt 0:00:26]} Qd6 {[%emt 0:00:41]} 29. f5 {[%emt 0:07:00]} exf5 {[%emt 0:03:42]} 30. Rxf5 {[%emt 0:00:30]} Qe6 {[%emt 0:00:57]} 31. Rcf2 {[%emt 0:03:02]} Re8 {[%emt 0:03:39]} 32. h3 {[%emt 0:03:57]} h6 {[%emt 0:00:24]} 33. R2f3 {[%emt 0:00:44]} c6 {[%emt 0:03:27]} 34. Kh1 {[%emt 0:00:30]} Rae7 {[%emt 0:02:14]} 35. R3f4 {[%emt 0:08:37]} Bc7 {[%emt 0:02:00]} 36. Rf1 {[%emt 0:00:13]} Qd6 {[%emt 0:02:48]} 37. g3 {[%emt 0:04:54]} Rxe4 {[%emt 0:01:30]} 38. Qc4+ {[%emt 0:01:40]} Kh7 {[%emt 0:00:53]} 1/2-1/2

[Event "24th Barcelona Open-A 2019"]
[Site "Barcelona"]
[Date "2019.10.04"]
[Round "8.19"]
[White "Palacin Martin, Ricardo"]
[Black "Walukow, Theodora Paulina"]
[Result "1-0"]
[ECO "D45"]
[WhiteElo "1985"]
[BlackElo "1864"]
[Annotator "NA"]
[PlyCount "58"]
[EventDate "2019.09.27"]
[EventType "swiss"]
[EventCountry "ESP"]
[SourceTitle "playchess.com"]
[Source "ChessBase"]
[SourceQuality "1"]
[TimeControl "5400+30"]

1. d4 {[%emt 0:00:00]} d5 {[%emt 0:00:00]} 2. c4 {[%emt 0:00:06]} c6 {[%emt 0:00:06]} 3. Nf3 {[%emt 0:00:10]} Nf6 {[%emt 0:00:09]} 4. Nc3 {[%emt 0:00:12]} e6 {[%emt 0:01:02]} 5. e3 {[%emt 0:02:28]} Bd6 {[%emt 0:00:21]} 6. Bd3 dxc4 {[%emt 0:02:49]} 7. Bxc4 {[%emt 0:00:47]} b5 {[%emt 0:00:08]} 8. Bd3 {[%emt 0:04:53]} Nbd7 {[%emt 0:00:33]} 9. O-O {[%emt 0:00:33]} a6 10. e4 {[%emt 0:11:04]} e5 {[%emt 0:07:22]} 11. Bg5 {[%emt 0:04:32]} exd4 {[%emt 0:09:28]} 12. Nxd4 {[%emt 0:00:16]} Ne5 {[%emt 0:00:15]} 13. Be2 {[%emt 0:04:33]} O-O {[%emt 0:11:27]} 14. Rc1 {[%emt 0:04:45]} Be7 {[%emt 0:12:30]} 15. Bf4 {[%emt 0:07:04]} Nfd7 {[%emt 0:09:43]} 16. Be3 {[%emt 0:08:50]} Bb7 {[%emt 0:05:56]} 17. Qc2 {[%emt 0:06:02]} Bc5 {[%emt 0:04:48]} 18. Rfd1 {[%emt 0:00:47]} Qc7 {[%emt 0:05:02]} 19. a3 {[%emt 0:06:12]} Rac8 {[%emt 0:06:36]} 20. b4 {[%emt 0:03:17]} Bxd4 {[%emt 0:04:34]} 21. Bxd4 {[%emt 0:00:12]} Rfd8 {[%emt 0:02:58]} 22. Nd5 {[%emt 0:03:55]} Qd6 {[%emt 0:05:44]} 23. Nb6 {[%emt 0:01:23]} Qe7 {[%emt 0:08:49]} 24. Nxc8 {[%emt 0:04:39]} Rxc8 {[%emt 0:00:04]} 25. Bxe5 {[%emt 0:00:24]} Nxe5 {[%emt 0:00:06]} 26. Qc5 {[%emt 0:00:13]} Qg5 {[%emt 0:00:44]} 27. g3 {[%emt 0:03:34]} Qf6 {[%emt 0:00:49]} 28. f4 {[%emt 0:03:27]} Ng6 {[%emt 0:00:29]} 29. Qd4 {[%emt 0:02:02]} c5 1-0

[Event "24th Barcelona Open-A 2019"]
[Site "Barcelona"]
[Date "2019.10.04"]
[Round "8.20"]
[White "Vargas Drechsler, Carlos"]
[Black "Grau Ferrer, Carles"]
[Result "1-0"]
[ECO "B22"]
[WhiteElo "1878"]
[BlackElo "1808"]
[Annotator "NA"]
[PlyCount "51"]
[EventDate "2019.09.27"]
[EventType "swiss"]
[EventCountry "ESP"]
[SourceTitle "playchess.com"]
[Source "ChessBase"]
[SourceQuality "1"]
[TimeControl "5400+30"]

1. e4 c5 2. c3 e6 3. d4 cxd4 4. cxd4 d6 5. Nc3 Nf6 6. Nf3 Be7 7. Bd3 Bd7 8. O-O Nc6 9. Bf4 O-O 10. Rc1 Ne8 11. Bb1 f6 12. d5 Ne5 13. Nd4 Nc7 14. dxe6 Bc6 15. a3 Qe8 16. Ba2 Rd8 17. Nd5 Bxd5 18. exd5 Na6 19. Nf5 g6 20. Bxe5 gxf5 21. Bd4 Kh8 22. Qf3 Rg8 23. Qxf5 Qf8 24. Rc3 b6 25. Bb1 Rg7 26. Rh3 1-0

[Event "24th Barcelona Open-A 2019"]
[Site "Barcelona"]
[Date "2019.10.05"]
[Round "9.19"]
[White "Lopez Manzano, Antonio"]
[Black "Palacin Martin, Ricardo"]
[Result "1/2-1/2"]
[ECO "D05"]
[WhiteElo "1852"]
[BlackElo "1985"]
[Annotator "NA"]
[PlyCount "20"]
[EventDate "2019.09.27"]
[EventType "swiss"]
[EventCountry "ESP"]
[SourceTitle "playchess.com"]
[Source "ChessBase"]
[SourceQuality "1"]
[TimeControl "5400+30"]

1. d4 {[%emt 0:00:00]} d5 {[%emt 0:00:00]} 2. Nf3 {[%emt 0:00:00]} Nf6 {[%emt 0:00:00]} 3. e3 {[%emt 0:00:00]} e6 {[%emt 0:00:22]} 4. Bd3 c5 {[%emt 0:02:56]} 5. b3 {[%emt 0:00:35]} b6 6. Qe2 {[%emt 0:03:14]} Be7 {[%emt 0:05:58]} 7. Ne5 {[%emt 0:03:29]} O-O {[%emt 0:01:23]} 8. Nd2 {[%emt 0:01:02]} Bb7 9. O-O {[%emt 0:01:26]} Nbd7 {[%emt 0:02:04]} 10. f4 {[%emt 0:02:56]} Ne4 {[%emt 0:00:47]} 1/2-1/2